bitfinex/quotes_BTCUSD_20251029
["timestamp","ask_amount","ask_price","bid_price","bid_amount"]
[1761761050522,0.17879492,111860.0,111850.0,0.34]
[1761761050721,0.17879492,111860.0,111850.0,0.42981901]
[1761761050941,0.1788109,111850.0,111840.0,0.004]
[1761761051136,0.1788109,111850.0,111840.0,0.09381901]
[1761761051402,0.1788109,111850.0,111840.0,0.08981901]
[1761761051604,0.17882689,111840.0,111830.0,5e-05]
[1761761051807,0.17882689,111840.0,111830.0,0.08986901]
[1761761052165,0.17881103,111850.0,111840.0,0.34]
[1761761052366,0.17881103,111850.0,111840.0,0.43081901]
[1761761052679,0.17882689,111840.0,111830.0,0.34005]
[1761761052878,0.17881103,111850.0,111830.0,0.60871189]
[1761761053086,0.02992,111870.0,111850.0,0.1788109]
[1761761053285,0.17876296,111880.0,111860.0,0.1232785]
[1761761053494,0.18768432,111890.0,111870.0,0.19665682]
[1761761053698,0.18768432,111890.0,111870.0,0.26859794]
[1761761054113,0.17876296,111880.0,111870.0,0.08981901]
[1761761054317,0.18768432,111890.0,111880.0,0.51876296]
[1761761054516,0.18771871,111900.0,111880.0,0.60858197]
[1761761054720,0.17881923,111910.0,111890.0,0.29842068]
[1761761054919,0.17881923,111910.0,111890.0,0.28054599]
[1761761055144,0.17871503,111910.0,111900.0,0.1966041]
[1761761055311,0.17871503,111910.0,111900.0,0.26855001]
[1761761055624,0.18770528,111920.0,111900.0,0.26855001]
[1761761056288,0.18770528,111920.0,111900.0,0.42981901]
[1761761056289,0.17871503,111910.0,111900.0,0.42981901]
[1761761056713,0.178731,111900.0,111870.0,0.52771787]
[1761761056925,0.17871503,111910.0,111900.0,0.34]
[1761761057339,0.18770528,111920.0,111900.0,0.60855001]
[1761761057545,0.18770528,111920.0,111900.0,0.65487001]
[1761761057749,0.18770528,111920.0,111910.0,0.34]
[1761761057957,0.18772684,111930.0,111920.0,0.34]
[1761761058164,0.1786831,111930.0,111920.0,0.60851808]
[1761761058381,0.1786831,111930.0,111920.0,0.42981901]
[1761761058593,0.1787197,111940.0,111920.0,0.60851808]
[1761761058805,0.1786831,111930.0,111920.0,0.47513901]
[1761761058985,0.1786831,111930.0,111920.0,0.42981901]
[1761761059229,0.1787197,111940.0,111920.0,0.60851808]
[1761761059435,0.1787197,111940.0,111920.0,0.65383808]
[1761761059641,0.1786831,111930.0,111920.0,0.65383808]
[1761761059855,0.1786831,111930.0,111920.0,0.42981901]
[1761761060064,0.1786831,111930.0,111920.0,0.08981901]
[1761761060267,0.17870852,111920.0,111900.0,0.52766646]
[1761761060468,0.17870852,111920.0,111910.0,0.08981901]
[1761761060673,0.1796831,111930.0,111910.0,0.26853404]
[1761761060878,0.1786831,111930.0,111910.0,0.26853404]
[1761761061292,0.17871503,111910.0,111890.0,0.0292]
[1761761061508,0.178731,111900.0,111890.0,0.11901901]
[1761761061713,0.178731,111900.0,111890.0,0.08981901]
[1761761061917,0.17871503,111910.0,111890.0,0.63776599]
[1761761062124,0.17871535,111910.0,111890.0,0.34308599]
[1761761062331,0.178731,111900.0,111890.0,0.34308599]
[1761761062541,0.178731,111900.0,111890.0,0.45901901]
[1761761062757,0.178731,111900.0,111870.0,0.18771787]
[1761761062973,0.17875493,111890.0,111880.0,0.60858197]
[1761761063184,0.227371,111900.0,111890.0,0.17974698]
[1761761063185,0.178731,111900.0,111890.0,0.17974698]
[1761761063405,0.17871547,111910.0,111890.0,0.29876599]
[1761761063605,0.178731,111900.0,111890.0,0.34413599]
[1761761063813,0.178731,111900.0,111890.0,0.12006901]
[1761761064018,0.178731,111900.0,111890.0,0.29881599]
[1761761064224,0.001,111900.0,111890.0,0.34413599]
[1761761064425,0.179731,111900.0,111890.0,0.29881599]
[1761761065100,0.17869907,111920.0,111890.0,0.68313599]
[1761761065340,0.17869907,111920.0,111910.0,0.34]
[1761761065543,0.178731,111900.0,111890.0,5e-05]
[1761761065981,0.227371,111900.0,111890.0,5e-05]
[1761761066185,0.26798102,111900.0,111890.0,0.00105]
[1761761066411,0.227371,111900.0,111890.0,5e-05]
[1761761066841,0.227371,111900.0,111890.0,0.00105]
[1761761067054,0.31719001,111900.0,111890.0,0.00105]
[1761761067684,0.17882689,111840.0,111830.0,0.00968]
[1761761067888,0.17882689,111840.0,111830.0,0.09949901]
[1761761068093,0.17882689,111840.0,111830.0,0.08986901]
[1761761068300,0.17882689,111840.0,111830.0,5e-05]
[1761761068716,0.17882501,111850.0,111830.0,0.13518901]
[1761761068925,0.17882689,111840.0,111830.0,0.47518901]
[1761761069157,0.17882689,111840.0,111830.0,0.08986901]
[1761761069602,0.17882689,111840.0,111830.0,0.42986901]
[1761761069826,0.17982689,111840.0,111830.0,0.60871189]
[1761761070045,0.17879695,111860.0,111840.0,0.17881278]
[1761761070290,0.17879695,111860.0,111850.0,0.10565901]
[1761761070724,0.18772835,111880.0,111850.0,0.33873045]
[1761761070949,0.17877893,111870.0,111860.0,0.58199441]
[1761761071162,0.17879021,111880.0,111860.0,0.65393393]
[1761761071372,0.17877893,111870.0,111860.0,0.65393393]
[1761761071593,0.17874722,111890.0,111870.0,0.22409893]
[1761761071811,0.17874722,111890.0,111880.0,0.08981901]
[1761761072230,0.17874698,111890.0,111880.0,0.33177826]
[1761761072442,0.17874698,111890.0,111880.0,0.31390197]
[1761761072679,0.178731,111900.0,111890.0,0.17874597]
[1761761072902,0.178731,111900.0,111890.0,0.68308498]
[1761761073154,0.18773597,111910.0,111890.0,0.68308498]
[1761761073367,0.17874495,111940.0,111910.0,0.5187125]
[1761761073593,0.17874495,111940.0,111930.0,0.00963]
[1761761073784,0.1786831,111930.0,111920.0,0.08981901]
[1761761074050,0.17874495,111940.0,111920.0,0.29537148]
[1761761074257,0.1786831,111930.0,111920.0,0.31383808]
[1761761074467,0.1786831,111930.0,111920.0,0.26851808]
[1761761075074,0.1786831,111930.0,111920.0,0.08981901]
[1761761075209,0.17869907,111920.0,111910.0,0.34]
[1761761075412,0.1786831,111930.0,111910.0,0.60853404]
[1761761075656,0.17869907,111920.0,111910.0,0.42981901]
[1761761075854,0.17869907,111920.0,111910.0,0.08981901]
[1761761076058,0.178731,111900.0,111890.0,0.04707469]
[1761761076289,0.178731,111900.0,111890.0,0.08981901]
[1761761076805,0.17876565,111890.0,111870.0,0.19665682]
[1761761077115,0.17876565,111890.0,111870.0,0.51877893]
[1761761077116,0.17876296,111880.0,111870.0,0.51877893]
[1761761077295,0.17876565,111890.0,111870.0,0.56417893]
[1761761077737,0.17876296,111880.0,111870.0,0.56417893]
[1761761077940,0.17973427,111900.0,111890.0,0.17874698]
[1761761078143,0.17973427,111900.0,111890.0,0.11507901]
[1761761078571,0.17973427,111900.0,111890.0,0.08981901]
[1761761078793,0.17874698,111890.0,111880.0,0.51876296]
[1761761079070,0.17874698,111890.0,111880.0,0.65398197]
[1761761079326,0.17874698,111890.0,111880.0,0.42981901]
[1761761079327,0.17974698,111890.0,111880.0,0.42981901]
[1761761079539,0.17974698,111890.0,111880.0,0.08981901]
[1761761079747,0.17974698,111890.0,111870.0,0.34]
[1761761079748,0.17874698,111890.0,111870.0,0.34]
[1761761079954,0.17876296,111880.0,111870.0,0.42981901]
[1761761080162,0.17876296,111880.0,111860.0,5e-05]
[1761761080163,0.17877893,111870.0,111860.0,5e-05]
[1761761080378,0.17876296,111880.0,111860.0,0.13526901]
[1761761080501,0.17876296,111880.0,111870.0,0.01787789]
[1761761080704,0.17876296,111880.0,111870.0,0.1530969]
[1761761080911,0.17876296,111880.0,111870.0,0.08981901]
[1761761081169,0.17876296,111880.0,111870.0,0.26959794]
[1761761081389,0.17876296,111880.0,111870.0,0.09186901]
[1761761081830,0.17876296,111880.0,111870.0,0.00105]
[1761761082040,0.17876296,111880.0,111870.0,0.09086901]
[1761761082457,0.17876296,111880.0,111870.0,0.08986901]
[1761761082665,0.18768432,111890.0,111870.0,0.26864794]
[1761761082877,0.17876296,111880.0,111870.0,0.26964794]
[1761761083089,0.17874698,111890.0,111880.0,0.51876296]
[1761761083295,0.17874698,111890.0,111880.0,0.60858197]
[1761761083508,0.17874698,111890.0,111880.0,0.60758197]
[1761761084174,0.17874698,111890.0,111880.0,0.42881901]
[1761761084382,0.17874698,111890.0,111880.0,0.60658197]
[1761761084604,0.17874698,111890.0,111880.0,0.42781901]
[1761761084815,0.17876296,111880.0,111870.0,0.00105]
[1761761085032,0.21326062,111890.0,111870.0,0.09086901]
[1761761085234,0.19665044,111880.0,111870.0,0.09086901]
[1761761085471,0.17876296,111880.0,111870.0,0.09086901]
[1761761085697,0.17876296,111880.0,111870.0,5e-05]
[1761761086123,0.17876296,111880.0,111870.0,0.00105]
[1761761086537,0.17976296,111880.0,111870.0,0.00105]
[1761761086739,0.17976296,111880.0,111870.0,0.09086901]
[1761761087163,0.001,111880.0,111870.0,0.33297583]
[1761761087368,0.001,111880.0,111870.0,0.31509794]
[1761761087572,0.17976296,111880.0,111870.0,0.26869794]
[1761761087784,0.17976296,111880.0,111870.0,0.08991901]
[1761761088407,0.001,111880.0,111870.0,0.26869794]
[1761761088613,0.001,111880.0,111870.0,0.31409794]
[1761761088828,0.16351062,111890.0,111880.0,0.17876296]
[1761761089035,0.16351062,111890.0,111870.0,0.31609794]
[1761761089266,0.17874698,111890.0,111880.0,0.26858197]
[1761761089457,0.18767082,111900.0,111880.0,0.78180808]
[1761761089699,0.18766446,111910.0,111890.0,0.7616521]
[1761761089930,0.18763402,111920.0,111900.0,0.64655711]
[1761761090152,0.17871503,111910.0,111900.0,0.08981901]
[1761761090373,0.17871503,111910.0,111890.0,0.72617043]
[1761761090374,0.178731,111900.0,111890.0,0.02526]
[1761761090843,0.17871503,111910.0,111890.0,0.82492679]
[1761761091058,0.17871503,111910.0,111900.0,0.46782611]
[1761761091700,0.178731,111900.0,111890.0,0.8070521]
[1761761091930,0.178731,111900.0,111890.0,0.58290512]
[1761761092145,0.178731,111900.0,111890.0,0.11607901]
[1761761092358,0.178731,111900.0,111890.0,0.7616521]
[1761761092563,0.178731,111900.0,111890.0,0.29382599]
[1761761092797,0.178731,111900.0,111890.0,0.7616521]
[1761761093012,0.178731,111900.0,111890.0,0.58290512]
[1761761093288,0.03618228,111890.0,111860.0,5e-05]
[1761761093506,0.51882689,111840.0,111820.0,0.00021595]
[1761761093744,3.03401647,111830.0,111820.0,1e-08]
[1761761093958,2.66347504,111830.0,111820.0,1e-08]
[1761761094166,3.22112016,111830.0,111820.0,1e-08]
[1761761094375,3.21112017,111830.0,111820.0,1e-08]
[1761761094608,3.22112016,111830.0,111820.0,1e-08]
[1761761095029,3.23112015,111830.0,111820.0,1e-08]
[1761761095247,3.22412016,111830.0,111820.0,1e-08]
[1761761095454,3.29724672,111830.0,111820.0,1e-08]
[1761761095665,3.32342901,111830.0,111820.0,1e-08]
[1761761095912,3.32042901,111830.0,111820.0,1e-08]
[1761761096122,3.330429,111830.0,111820.0,1e-08]
[1761761096330,3.32042901,111830.0,111820.0,1e-08]
[1761761096542,3.330429,111830.0,111820.0,1e-08]
[1761761096763,2.71611178,111830.0,111820.0,1e-08]
[1761761096974,2.27766189,111830.0,111820.0,1e-08]
[1761761097454,0.19284288,111830.0,111820.0,1e-08]
[1761761097868,0.52784288,111830.0,111820.0,1e-08]
[1761761098292,0.52984288,111830.0,111820.0,1e-08]
[1761761098739,0.17885888,111820.0,111810.0,0.02829]
[1761761099364,0.51887487,111810.0,111800.0,0.07374]
[1761761099573,0.51887487,111810.0,111800.0,0.02834]
[1761761099800,0.51887487,111810.0,111800.0,5e-05]
[1761761100421,0.60869388,111810.0,111800.0,5e-05]
[1761761100634,0.65844388,111810.0,111800.0,5e-05]
[1761761101142,3.23557883,111810.0,111800.0,5e-05]
[1761761101363,3.27176111,111810.0,111800.0,5e-05]
[1761761101799,2.65844388,111810.0,111800.0,5e-05]
[1761761102028,0.51887487,111810.0,111800.0,5e-05]
[1761761102249,0.72921726,111810.0,111800.0,5e-05]
[1761761102465,2.65944388,111810.0,111800.0,5e-05]
[1761761102682,2.69562616,111810.0,111800.0,5e-05]
[1761761102887,0.17890687,111790.0,111780.0,0.00045]
[1761761103103,2.67436816,111790.0,111780.0,1e-08]
[1761761103317,2.81393717,111790.0,111780.0,1e-08]
[1761761103529,0.51892288,111780.0,111770.0,1e-08]
[1761761103751,3.27180912,111780.0,111770.0,1e-08]
[1761761103961,2.69467417,111780.0,111770.0,1e-08]
[1761761104180,0.51892288,111780.0,111770.0,1e-08]
[1761761104606,0.56867288,111780.0,111770.0,1e-08]
[1761761104846,0.65849189,111780.0,111770.0,1e-08]
[1761761105093,0.65849189,111780.0,111770.0,0.00108034]
[1761761105328,0.74717777,111780.0,111770.0,0.00108034]
[1761761105560,1.23762684,111780.0,111770.0,0.00108034]
[1761761105796,1.23562684,111780.0,111770.0,0.00108034]
[1761761106026,0.65849189,111780.0,111770.0,0.00108034]
[1761761106290,0.66049189,111780.0,111770.0,0.00208034]
[1761761106518,0.18092288,111780.0,111770.0,0.00208034]
[1761761106976,0.66049189,111780.0,111770.0,0.00208034]
[1761761107391,0.66249189,111780.0,111770.0,0.00208034]
[1761761107829,0.66049189,111780.0,111770.0,0.00208034]
[1761761108242,0.65949189,111780.0,111770.0,0.00108034]
[1761761108449,1.26974463,111780.0,111770.0,0.00108034]
[1761761108891,1.26974463,111780.0,111770.0,1e-08]
[1761761109097,3.30592691,111780.0,111770.0,1e-08]
[1761761109305,3.50592691,111780.0,111770.0,1e-08]
[1761761109514,2.92879196,111780.0,111770.0,1e-08]
[1761761109721,3.50592691,111780.0,111770.0,1e-08]
[1761761109949,3.50592691,111780.0,111730.0,0.0004]
[1761761109950,0.51898693,111740.0,111730.0,0.0004]
[1761761110197,0.61816594,111740.0,111730.0,0.0004]
[1761761110471,2.66378594,111740.0,111730.0,0.0004]
[1761761110721,2.66378594,111740.0,111730.0,1e-08]
[1761761111068,0.56462295,111730.0,111720.0,1e-08]
[1761761111310,2.70062423,111730.0,111720.0,1e-08]
[1761761111786,3.40180982,111730.0,111720.0,1e-08]
[1761761112047,3.39180983,111730.0,111720.0,1e-08]
[1761761112331,3.37757818,111730.0,111720.0,1e-08]
[1761761112709,2.80444323,111730.0,111720.0,1e-08]
[1761761113072,2.83867486,111730.0,111720.0,1e-08]
[1761761113376,0.54686706,111690.0,111680.0,1e-08]
[1761761113645,2.94907839,111690.0,111680.0,1e-08]
[1761761113861,3.57464334,111690.0,111680.0,1e-08]
[1761761114068,3.50843329,111690.0,111680.0,1e-08]
[1761761114509,3.51843328,111690.0,111680.0,1e-08]
[1761761114927,3.30843329,111690.0,111680.0,1e-08]
[1761761115139,3.30843329,111690.0,111640.0,1e-08]
[1761761115140,2.55531349,111650.0,111640.0,1e-08]
[1761761115381,2.73495151,111650.0,111640.0,1e-08]
[1761761115594,2.7933815,111650.0,111640.0,1e-08]
[1761761115809,3.27069745,111650.0,111640.0,1e-08]
[1761761116021,3.27069745,111650.0,111640.0,0.00281274]
[1761761116519,3.27069745,111650.0,111640.0,1e-08]
[1761761116767,3.27169745,111650.0,111640.0,0.00300001]
[1761761117026,0.3791633,111630.0,111610.0,5e-05]
[1761761117270,0.34,111600.0,111560.0,0.00076033]
[1761761117509,0.17932394,111530.0,111500.0,10.0]
[1761761117744,3.12429106,111510.0,111500.0,6.13511721]
[1761761117967,3.12429106,111510.0,111500.0,5.65721311]
[1761761117968,3.33429105,111510.0,111500.0,5.65721311]
[1761761118195,3.33429105,111510.0,111500.0,5.05963923]
[1761761118196,3.6419615,111510.0,111500.0,5.05963923]
[1761761118408,1.65196149,111510.0,111500.0,4.2445893]
[1761761118619,1.7417805,111510.0,111500.0,1.55102478]
[1761761118830,1.7417805,111510.0,111390.0,0.00380328]
[1761761118831,0.51953321,111400.0,111390.0,0.00380328]
[1761761119068,2.51953321,111400.0,111390.0,0.00380328]
[1761761119300,0.17964609,111330.0,111320.0,0.00105]
[1761761119521,0.75673265,111360.0,111320.0,0.00105]
[1761761119522,0.18857758,111360.0,111320.0,0.00105]
[1761761119735,0.01404182,111360.0,111320.0,0.00105]
[1761761119944,0.00713247,111360.0,111330.0,0.18862407]
[1761761120173,0.18673529,111360.0,111320.0,0.05860311]
[1761761120427,0.17964609,111330.0,111320.0,0.00105]
[1761761120657,0.51964609,111330.0,111320.0,0.00105]
[1761761120865,2.51964609,111330.0,111320.0,0.00105]
[1761761121075,0.51967837,111310.0,111300.0,0.0002]
[1761761121294,2.51967837,111310.0,111300.0,0.09001901]
[1761761121745,0.17967478,111320.0,111300.0,0.09001901]
[1761761121959,0.00999999,111330.0,111300.0,0.13858901]
[1761761122208,0.18962379,111350.0,111300.0,0.09001901]
[1761761122443,0.18863558,111330.0,111300.0,0.09001901]
[1761761122656,0.17966632,111320.0,111300.0,0.09001901]
[1761761122870,0.17965328,111330.0,111300.0,0.13858901]
[1761761123125,0.01713246,111360.0,111310.0,0.05755391]
[1761761123358,0.03245171,111350.0,111310.0,0.23723223]
[1761761123582,0.17961559,111350.0,111310.0,0.04857]
[1761761123830,0.17963004,111340.0,111300.0,0.43001901]
[1761761124073,0.18673241,111360.0,111310.0,0.57722965]
[1761761124348,0.08981901,111340.0,111330.0,0.51964609]
[1761761124585,0.00467048,111380.0,111360.0,0.17958851]
[1761761124826,0.00467048,111380.0,111370.0,0.02847]
[1761761125065,0.00467048,111380.0,111370.0,0.41704]
[1761761125302,0.08514853,111380.0,111370.0,0.07704]
[1761761125514,0.08514853,111380.0,111350.0,0.17961382]
[1761761125734,0.17950106,111420.0,111380.0,0.00897827]
[1761761125984,0.08981901,111390.0,111380.0,0.53752183]
[1761761126211,0.08981901,111390.0,111380.0,1.09670024]
[1761761126445,0.17948352,111450.0,111400.0,0.17953107]
[1761761126663,0.1795304,111460.0,111410.0,0.78357828]
[1761761126928,0.1795304,111460.0,111420.0,0.0423941]
[1761761127140,0.17945278,111450.0,111430.0,0.00363628]
[1761761127363,0.17951101,111470.0,111430.0,0.77820298]
[1761761127588,0.17942053,111470.0,111440.0,0.93508182]
[1761761127834,0.18842922,111500.0,111460.0,0.60560495]
[1761761127835,0.17946062,111500.0,111460.0,0.60560495]
[1761761128068,0.1794041,111510.0,111470.0,0.00897102]
[1761761128325,0.1794041,111510.0,111470.0,0.01571062]
[1761761128326,0.17935744,111510.0,111470.0,0.01571062]
[1761761128564,0.17937414,111500.0,111470.0,0.01571062]
[1761761128781,0.17938984,111490.0,111460.0,0.02847]
[1761761128991,0.18834274,111500.0,111470.0,0.04857]
[1761761128992,0.1793754,111500.0,111470.0,0.04857]
[1761761129240,0.17935744,111510.0,111480.0,0.57713495]
[1761761129479,0.17935751,111510.0,111480.0,0.57713495]
[1761761129694,0.18837976,111530.0,111490.0,0.06650882]
[1761761129916,0.17932488,111530.0,111500.0,0.57713495]
[1761761130122,0.17935628,111510.0,111490.0,0.04857]
[1761761130365,0.18830807,111520.0,111490.0,0.04857]
[1761761130366,0.17934107,111520.0,111490.0,0.04857]
[1761761130583,0.17935623,111510.0,111490.0,0.04857]
[1761761130806,0.17934107,111520.0,111490.0,0.04857]
[1761761131024,0.17934107,111520.0,111490.0,0.64364377]
[1761761131240,0.1793851,111550.0,111510.0,0.57713495]
[1761761131455,0.1793851,111550.0,111520.0,0.017934]
[1761761131668,0.17929182,111550.0,111520.0,0.75622045]
[1761761131878,0.17929182,111550.0,111530.0,0.01793239]
[1761761131879,0.17929282,111550.0,111530.0,0.01793239]
[1761761132138,0.17934673,111570.0,111530.0,0.16528759]
[1761761132350,0.17930146,111580.0,111540.0,0.87315799]
[1761761132567,0.17930146,111580.0,111550.0,0.10774818]
[1761761132778,0.17925992,111570.0,111550.0,0.13838901]
[1761761132988,0.17925992,111570.0,111530.0,0.04857]
[1761761132989,0.17927572,111560.0,111530.0,0.04857]
[1761761133194,0.17925992,111570.0,111550.0,0.08981901]
[1761761133443,0.17927572,111560.0,111550.0,0.08981901]
[1761761134091,0.17930146,111580.0,111550.0,0.15631818]
[1761761134306,0.17932058,111590.0,111560.0,0.13838901]
[1761761134519,0.17932058,111590.0,111560.0,0.93223306]
[1761761134520,0.17922788,111590.0,111560.0,0.93223306]
[1761761134779,0.17926985,111620.0,111570.0,0.40649596]
[1761761134998,0.17921206,111600.0,111580.0,0.9350593]
[1761761135231,0.17921206,111600.0,111570.0,0.38857]
[1761761135448,0.17921306,111600.0,111580.0,0.04857]
[1761761135673,0.17924363,111580.0,111560.0,0.16685901]
[1761761135897,0.17922752,111590.0,111570.0,0.08981901]
[1761761136166,0.17921306,111600.0,111570.0,0.13838901]
[1761761136396,0.17919863,111610.0,111570.0,0.13838901]
[1761761136623,0.17924359,111580.0,111530.0,0.18828794]
[1761761136857,0.17924359,111580.0,111540.0,0.15631979]
[1761761137088,0.51924071,111600.0,111560.0,0.8551932]
[1761761137325,0.17922797,111590.0,111570.0,0.04639596]
[1761761137536,0.17922797,111590.0,111580.0,0.08981901]
[1761761137537,0.17922752,111590.0,111580.0,0.08981901]
[1761761137797,0.17919863,111610.0,111580.0,0.08981901]
[1761761137997,0.17922752,111590.0,111580.0,0.08981901]
[1761761138636,0.17925858,111580.0,111550.0,0.04652]
[1761761138859,0.17926099,111570.0,111560.0,0.08981901]
[1761761139082,0.17925965,111570.0,111560.0,0.08981901]
[1761761139977,0.17922752,111590.0,111560.0,0.08981901]
[1761761140192,0.17922752,111590.0,111560.0,0.31561205]
[1761761140416,0.17921356,111600.0,111570.0,0.82980246]
[1761761140632,0.17921232,111600.0,111580.0,0.10493297]
[1761761140837,0.17921232,111600.0,111580.0,0.15145297]
[1761761141045,0.17922752,111590.0,111580.0,0.13633901]
[1761761141291,0.17922752,111590.0,111550.0,0.1882561]
[1761761141292,0.17925679,111580.0,111550.0,0.18825058]
[1761761141504,0.18818889,111590.0,111560.0,0.34250313]
[1761761141505,0.17922752,111590.0,111560.0,0.34250313]
[1761761141716,0.17924378,111580.0,111560.0,0.32457662]
[1761761141925,0.17924378,111580.0,111560.0,0.13633901]
[1761761142134,0.17925965,111570.0,111560.0,0.08981901]
[1761761142832,0.17924378,111580.0,111560.0,0.13622396]
[1761761143060,0.17925965,111570.0,111560.0,0.13622396]
[1761761143274,0.16436834,111580.0,111560.0,0.08970396]
[1761761143487,0.17925965,111570.0,111560.0,0.08970396]
[1761761143698,0.17928944,111560.0,111540.0,0.06445078]
[1761761143947,0.16436834,111580.0,111550.0,0.8927612]
[1761761144375,0.17926102,111570.0,111550.0,0.3156302]
[1761761144580,0.17926102,111570.0,111550.0,0.13633901]
[1761761145214,0.17927572,111560.0,111530.0,0.34]
[1761761145426,0.17929209,111550.0,111540.0,0.08981901]
[1761761146067,0.17929179,111550.0,111540.0,0.08981901]
[1761761146283,0.17932145,111540.0,111520.0,0.07499]
[1761761146527,0.17932145,111540.0,111530.0,0.08981901]
[1761761146744,0.17932145,111540.0,111520.0,0.08981901]
[1761761147208,0.17932394,111530.0,111520.0,0.08981901]
[1761761147410,0.17932145,111540.0,111510.0,0.23972008]
[1761761147659,0.17929179,111550.0,111520.0,0.08981901]
[1761761147869,0.51926102,111570.0,111530.0,0.20622208]
[1761761148078,0.17927677,111560.0,111540.0,0.08981901]
[1761761148285,0.17929179,111550.0,111540.0,0.08981901]
[1761761148704,0.17932467,111530.0,111510.0,0.08270228]
[1761761148966,0.17932467,111530.0,111520.0,0.08981901]
[1761761149172,0.17932224,111540.0,111520.0,0.13633901]
[1761761149630,0.17932394,111530.0,111520.0,0.08981901]
[1761761150029,0.17932224,111540.0,111520.0,0.08981901]
[1761761150243,0.17929179,111550.0,111520.0,0.31567881]
[1761761150449,0.17929216,111550.0,111530.0,0.22584356]
[1761761150654,0.17930787,111540.0,111530.0,0.13633901]
[1761761150865,0.17929216,111550.0,111530.0,0.08981901]
[1761761151072,0.17929188,111550.0,111540.0,0.13633901]
[1761761151288,0.528224,111570.0,111540.0,0.31564566]
[1761761151516,0.17926102,111570.0,111550.0,0.04652]
[1761761151740,0.17926,111570.0,111550.0,0.36100825]
[1761761151957,0.1792447,111580.0,111560.0,0.08981901]
[1761761152181,0.17922809,111590.0,111570.0,0.27115877]
[1761761152393,0.17930688,111600.0,111580.0,0.08981901]
[1761761152604,0.17922752,111590.0,111580.0,0.08981901]
[1761761152837,0.17930688,111600.0,111580.0,0.13633901]
[1761761153247,0.17930688,111600.0,111580.0,0.31558207]
[1761761153454,0.17930688,111600.0,111580.0,0.13633901]
[1761761153659,0.17922752,111590.0,111580.0,0.13633901]
[1761761153864,0.17922752,111590.0,111570.0,0.04538]
[1761761154072,0.17925965,111570.0,111550.0,0.06330917]
[1761761154288,0.17925965,111570.0,111560.0,0.08981901]
[1761761154495,0.17925965,111570.0,111530.0,0.04538]
[1761761154496,0.17930545,111550.0,111530.0,0.04538]
[1761761154718,0.1882395,111560.0,111540.0,0.08981901]
[1761761154923,0.51927642,111560.0,111540.0,0.13633901]
[1761761155375,0.17927618,111560.0,111540.0,0.08981901]
[1761761155583,0.17930787,111540.0,111520.0,0.22585836]
[1761761155790,0.51927618,111560.0,111530.0,0.36104159]
[1761761156006,0.17925965,111570.0,111540.0,0.17930357]
[1761761156213,0.17925965,111570.0,111550.0,0.08981901]
[1761761156214,0.17927572,111560.0,111550.0,0.08981901]
[1761761156655,0.17925965,111570.0,111550.0,0.31563074]
[1761761156892,0.17925965,111570.0,111550.0,0.31563049]
[1761761157103,0.52820576,111580.0,111550.0,0.36602038]
[1761761157321,0.17925965,111570.0,111560.0,0.00173316]
[1761761157520,0.17925965,111570.0,111560.0,0.09155217]
[1761761157725,0.51924359,111580.0,111560.0,0.13807217]
[1761761157950,0.51924359,111580.0,111570.0,0.08981901]
[1761761158621,0.17927572,111560.0,111540.0,0.17930576]
[1761761158891,0.17927375,111570.0,111550.0,0.08981901]
[1761761159116,0.17927375,111570.0,111550.0,0.26911063]
[1761761159347,0.17927572,111560.0,111550.0,0.08981901]
[1761761159815,0.17927572,111560.0,111530.0,0.0919]
[1761761159816,0.1882395,111560.0,111530.0,0.0919]
[1761761160049,0.17927375,111570.0,111540.0,0.31564677]
[1761761160303,0.01927798,111580.0,111550.0,0.20618502]
[1761761160541,0.17926272,111600.0,111570.0,0.22463813]
[1761761160791,0.18824714,111610.0,111580.0,0.28698632]
[1761761161036,0.01927276,111620.0,111600.0,0.17921146]
[1761761161282,0.18754675,111620.0,111610.0,0.08981901]
[1761761161532,0.1792277,111590.0,111570.0,0.23360111]
[1761761161758,0.1792277,111590.0,111580.0,0.08981901]
[1761761162019,0.17922752,111590.0,111580.0,0.13633901]
[1761761162246,0.51921147,111600.0,111580.0,0.08981901]
[1761761162500,0.17922752,111590.0,111580.0,0.08981901]
[1761761162742,0.1791959,111610.0,111590.0,0.22574752]
[1761761162979,0.17921146,111600.0,111590.0,0.13633901]
[1761761163241,0.1791959,111610.0,111590.0,0.26904586]
[1761761163487,0.00836589,111610.0,111600.0,0.26903047]
[1761761163733,0.28229665,111630.0,111610.0,0.17919474]
[1761761163734,0.18812157,111630.0,111610.0,0.17919474]
[1761761163967,0.18812157,111630.0,111620.0,0.08981901]
[1761761163968,0.18752788,111630.0,111620.0,0.08981901]
[1761761164457,0.17918042,111620.0,111590.0,0.18818822]
[1761761164691,0.17918042,111620.0,111600.0,0.13633901]
[1761761164692,0.18754498,111620.0,111600.0,0.13633901]
[1761761164923,0.17919541,111610.0,111600.0,0.08981901]
[1761761165160,0.51919541,111610.0,111600.0,0.08981901]
[1761761165396,0.51919541,111610.0,111580.0,0.19716588]
[1761761165397,0.52755836,111610.0,111580.0,0.19716588]
[1761761165628,0.17919616,111610.0,111590.0,0.08981901]
[1761761165845,0.17921146,111600.0,111590.0,0.08981901]
[1761761166281,0.17924359,111580.0,111560.0,0.18819407]
[1761761166496,0.52817203,111600.0,111570.0,0.13633901]
[1761761166711,0.18813936,111620.0,111590.0,0.17922698]
[1761761166945,0.51919624,111610.0,111600.0,0.08981901]
[1761761167164,0.17923783,111600.0,111560.0,0.2347595]
[1761761167385,0.17926092,111570.0,111560.0,0.08981901]
[1761761167596,0.17925965,111570.0,111560.0,0.08981901]
[1761761167822,0.17924359,111580.0,111560.0,0.26909367]
[1761761168046,0.17922839,111590.0,111570.0,0.3168781]
[1761761168326,0.52815601,111610.0,111580.0,0.17924164]
[1761761168558,0.17917966,111620.0,111590.0,0.27800601]
[1761761168789,0.1791821,111620.0,111600.0,0.22787691]
[1761761169029,0.1881776,111650.0,111620.0,0.17917773]
[1761761169249,0.17914858,111640.0,111630.0,0.08981901]
[1761761169461,0.18750818,111640.0,111630.0,0.08981901]
[1761761169697,0.0083596,111640.0,111630.0,0.36159843]
[1761761169907,0.17913212,111650.0,111630.0,0.1645188]
[1761761170128,0.18748592,111650.0,111630.0,0.08981901]
[1761761170338,0.18748587,111650.0,111630.0,0.31678191]
[1761761170544,0.18748587,111650.0,111630.0,0.26898191]
[1761761170545,0.0083538,111650.0,111630.0,0.26898191]
[1761761170908,0.18748605,111650.0,111630.0,0.13761901]
[1761761171043,0.0083538,111650.0,111640.0,0.22694725]
[1761761171254,0.18816304,111670.0,111640.0,0.31676626]
[1761761171507,0.00833926,111670.0,111650.0,0.20388213]
[1761761171756,0.1874384,111670.0,111650.0,0.36509932]
[1761761171991,0.00833926,111670.0,111660.0,0.37082797]
[1761761172239,0.17916341,111680.0,111660.0,0.35291646]
[1761761172534,0.17916341,111680.0,111670.0,0.32301033]
[1761761172535,0.00840596,111680.0,111670.0,0.32301033]